bitfinex/quotes_BTCUSD_20240715
["timestamp","ask_amount","ask_price","bid_price","bid_amount"]
[1721060328398,0.27383112,63198.0,63197.0,0.00706353]
[1721060328629,0.92976112,63198.0,63197.0,0.00706353]
[1721060328855,1.24622612,63198.0,63197.0,0.00706353]
[1721060329848,1.24622612,63198.0,63197.0,0.00266353]
[1721060330324,1.24559643,63198.0,63197.0,0.00266353]
[1721060331286,1.27835987,63198.0,63197.0,0.00266353]
[1721060331757,1.27035987,63198.0,63197.0,0.00266353]
[1721060332226,1.32906228,63198.0,63197.0,0.00266353]
[1721060333172,1.32106228,63198.0,63197.0,0.00266353]
[1721060333407,1.32106228,63198.0,63197.0,0.0804]
[1721060333408,1.32006228,63198.0,63197.0,0.0804]
[1721060333638,1.31995934,63198.0,63197.0,0.0804]
[1721060333864,1.32495934,63198.0,63197.0,0.0804]
[1721060334601,1.32395934,63198.0,63197.0,0.0804]
[1721060334828,1.00749434,63198.0,63197.0,0.0804]
[1721060335070,1.00849434,63198.0,63197.0,0.0804]
[1721060335349,0.21733234,63198.0,63197.0,0.0804]
[1721060335589,0.21733234,63198.0,63197.0,0.1462]
[1721060335590,0.0395979,63198.0,63197.0,0.1462]
[1721060336277,0.0395979,63198.0,63197.0,0.4582]
[1721060336501,0.0385979,63198.0,63197.0,0.459113]
[1721060336751,0.0458891,63198.0,63197.0,0.459113]
[1721060337019,0.02012566,63198.0,63197.0,0.557113]
[1721060337306,0.01612566,63198.0,63197.0,0.557113]
[1721060337529,0.01612566,63198.0,63197.0,0.562113]
[1721060337530,0.01712566,63198.0,63197.0,0.562113]
[1721060338000,0.04188679,63198.0,63197.0,0.562113]
[1721060338207,0.04088679,63198.0,63197.0,0.557113]
[1721060339874,0.04088679,63198.0,63197.0,0.561113]
[1721060340221,0.04021167,63198.0,63197.0,0.657113]
[1721060340431,0.04021167,63198.0,63197.0,0.717113]
[1721060340432,0.01545054,63198.0,63197.0,0.717113]
[1721060340646,0.3175,63220.0,63215.0,0.1472]
[1721060340647,0.158187,63216.0,63215.0,0.1472]
[1721060340860,0.86696058,63216.0,63215.0,0.1472]
[1721060341080,0.86696058,63216.0,63207.0,0.1]
[1721060341081,0.15821,63207.0,63206.0,0.15]
[1721060341294,0.15821,63207.0,63203.0,0.34034334]
[1721060341295,0.158217,63204.0,63203.0,0.34034334]
[1721060341503,0.158217,63204.0,63200.0,0.0615]
[1721060341505,0.791125,63201.0,63200.0,0.0615]
[1721060341717,0.81588167,63201.0,63200.0,0.0615]
[1721060341926,0.8649004,63201.0,63200.0,0.0615]
[1721060342204,0.83888167,63201.0,63200.0,0.0615]
[1721060342632,0.88890023,63201.0,63200.0,0.0615]
[1721060342838,0.88890023,63201.0,63200.0,0.0565]
[1721060343043,0.88390023,63201.0,63200.0,0.0565]
[1721060343252,0.56745023,63201.0,63200.0,0.0565]
[1721060343490,0.51843167,63201.0,63200.0,0.0565]
[1721060343907,0.51843167,63201.0,63200.0,0.0566]
[1721060344174,0.51743167,63201.0,63200.0,0.0566]
[1721060344403,0.51743167,63201.0,63200.0,0.0576]
[1721060344404,0.56779704,63201.0,63200.0,0.0576]
[1721060344632,0.09812204,63201.0,63200.0,0.0576]
[1721060344871,0.02575667,63201.0,63200.0,0.549]
[1721060345082,0.001,63201.0,63200.0,0.655]
[1721060345471,0.001,63201.0,63200.0,0.656]
[1721060345893,0.001,63201.0,63200.0,0.655]
[1721060346104,0.00306353,63212.0,63211.0,0.452]
[1721060346319,0.077596,63212.0,63211.0,0.14]
[1721060346544,0.077596,63212.0,63211.0,0.22105238]
[1721060346545,0.02475658,63212.0,63211.0,0.22105238]
[1721060346772,0.2558665,63212.0,63211.0,0.22105238]
[1721060347278,0.0976695,63212.0,63211.0,0.22105238]
[1721060347517,0.02475658,63212.0,63211.0,0.53305238]
[1721060347973,0.18294858,63214.0,63213.0,0.312]
[1721060348199,0.25606032,63214.0,63213.0,0.312]
[1721060348655,0.25606032,63214.0,63211.0,1.58675238]
[1721060348896,0.002,63212.0,63211.0,1.58675238]
[1721060349136,0.02675612,63212.0,63211.0,1.58675238]
[1721060349369,0.02575612,63212.0,63211.0,1.58675238]
[1721060349603,0.001,63212.0,63211.0,1.77875238]
[1721060350099,0.001,63212.0,63211.0,0.73105238]
[1721060350570,0.01510157,63212.0,63211.0,0.73105238]
[1721060350814,0.1,63223.0,63217.0,0.15]
[1721060350815,0.2291506,63221.0,63217.0,0.15]
[1721060351075,0.2291506,63221.0,63220.0,0.08105238]
[1721060351076,0.158175,63221.0,63220.0,0.08105238]
[1721060351299,0.24800892,63221.0,63220.0,0.08105238]
[1721060351786,0.31898452,63221.0,63220.0,0.08105238]
[1721060352015,0.57235892,63221.0,63220.0,0.08105238]
[1721060352512,0.24800892,63221.0,63220.0,0.08105238]
[1721060353423,0.25200892,63221.0,63220.0,0.08105238]
[1721060353691,0.01810367,63221.0,63220.0,0.72925238]
[1721060354916,0.01910367,63221.0,63220.0,0.72925238]
[1721060355369,0.01510367,63221.0,63220.0,0.72925238]
[1721060355601,0.01510367,63221.0,63220.0,0.73225238]
[1721060355602,0.02010367,63221.0,63220.0,0.73225238]
[1721060355825,0.01810367,63221.0,63220.0,0.72925238]
[1721060356359,0.01510367,63221.0,63220.0,0.73225238]
[1721060356580,0.01510367,63221.0,63220.0,0.73725238]
[1721060356581,0.01610367,63221.0,63220.0,0.73725238]
[1721060357677,0.01610367,63221.0,63220.0,0.88725238]
[1721060357678,0.002,63221.0,63220.0,0.88725238]
[1721060357682,0.002,63221.0,63220.0,0.94725238]
[1721060358708,0.001,63221.0,63220.0,0.94235238]
[1721060358929,0.00834,63234.0,63233.0,0.158]
[1721060359153,0.00834,63234.0,63233.0,0.6993]
[1721060359587,0.02113048,63234.0,63233.0,0.6993]
[1721060360432,0.02113048,63234.0,63233.0,0.3873]
[1721060360641,0.02113048,63234.0,63233.0,0.5073]
[1721060360863,0.02113048,63234.0,63233.0,0.6993]
[1721060361594,0.02121569,63234.0,63233.0,0.6993]
[1721060361804,0.02121569,63234.0,63233.0,0.8013]
[1721060361978,0.02121569,63234.0,63233.0,0.8063]
[1721060361979,0.00834,63234.0,63233.0,0.8063]
[1721060362376,0.02121394,63234.0,63233.0,0.8063]
[1721060363025,0.00834,63234.0,63233.0,0.8063]
[1721060364390,0.00834,63234.0,63233.0,0.8013]
[1721060364606,0.00934,63234.0,63233.0,0.8083]
[1721060364966,0.00934,63234.0,63233.0,0.8053]
[1721060365169,0.01034,63234.0,63233.0,0.8193]
[1721060365410,0.01034,63234.0,63233.0,0.8133]
[1721060365411,0.00934,63234.0,63233.0,0.8133]
[1721060365808,0.01034,63234.0,63233.0,0.8243]
[1721060371625,0.01034,63234.0,63233.0,0.4143]
[1721060371831,0.01034,63234.0,63233.0,0.8243]
[1721060373761,0.01034,63234.0,63233.0,0.8244]
[1721060374606,0.01034,63234.0,63233.0,0.5124]
[1721060375013,0.0219437,63234.0,63233.0,0.5124]
[1721060375634,0.0219437,63234.0,63233.0,0.2751]
[1721060375839,0.18314923,63234.0,63233.0,0.3731]
[1721060376044,0.02500723,63234.0,63233.0,0.3731]
[1721060376260,0.0219437,63234.0,63233.0,0.3731]
[1721060377957,0.02501543,63234.0,63233.0,0.3731]
[1721060379172,0.02501543,63234.0,63233.0,0.2751]
[1721060379388,0.8356639,63234.0,63233.0,0.1751]
[1721060379603,0.91400947,63234.0,63233.0,0.0251]
[1721060379818,1.23029447,63234.0,63233.0,0.0251]
[1721060380943,1.50987006,63234.0,63233.0,0.0251]
[1721060381159,1.66863913,63234.0,63233.0,0.0141]
[1721060381440,1.93292913,63234.0,63233.0,0.0001]
[1721060381699,1.115277,63218.0,63217.0,1.2457]
[1721060381930,1.115277,63218.0,63211.0,0.08105238]
[1721060381931,0.474492,63212.0,63211.0,0.08105238]
[1721060382145,1.14341484,63212.0,63211.0,0.08105238]
[1721060382353,1.19110455,63212.0,63211.0,0.08105238]
[1721060382561,1.16641484,63212.0,63211.0,0.08105238]
[1721060383416,1.16641484,63212.0,63211.0,0.47425238]
[1721060383417,0.03613284,63212.0,63211.0,0.47425238]
[1721060383645,0.03613284,63212.0,63211.0,0.63715238]
[1721060383646,0.01138478,63212.0,63211.0,0.63715238]
[1721060383859,0.01138478,63212.0,63211.0,0.73715238]
[1721060384109,0.01138478,63212.0,63211.0,0.79715238]
[1721060384349,0.013,63218.0,63217.0,0.7061]
[1721060384575,0.02445603,63218.0,63217.0,0.7061]
[1721060384800,0.02445603,63218.0,63217.0,0.8061]
[1721060385231,0.01635603,63218.0,63217.0,0.8061]
[1721060385444,0.00306353,63228.0,63217.0,0.8661]
[1721060385654,0.316284,63235.0,63228.0,0.4587]
[1721060385655,0.00306353,63233.0,63228.0,0.4587]
[1721060385872,0.03582133,63232.0,63228.0,0.4587]
[1721060386085,0.03888486,63231.0,63228.0,0.2447]
[1721060386309,0.03582133,63230.0,63228.0,0.2447]
[1721060386521,0.19397633,63229.0,63228.0,0.2447]
[1721060386738,0.03582133,63229.0,63228.0,0.2447]
[1721060387400,0.0360153,63229.0,63228.0,0.2447]
[1721060387611,0.03907883,63229.0,63228.0,0.2447]
[1721060388067,0.1941703,63229.0,63228.0,0.2447]
[1721060388729,0.1941703,63229.0,63228.0,0.2478]
[1721060388927,0.0360153,63229.0,63228.0,0.5568]
[1721060389141,0.01136568,63229.0,63228.0,0.6568]
[1721060389349,0.00834,63234.0,63233.0,0.2634]
[1721060389564,0.00834,63234.0,63233.0,0.34445238]
[1721060389972,0.01960759,63234.0,63233.0,0.34445238]
[1721060390589,0.01960759,63234.0,63233.0,0.65645238]
[1721060390992,0.01951315,63234.0,63233.0,0.65745238]
[1721060391636,0.04426039,63234.0,63233.0,0.65745238]
[1721060391818,0.01951315,63234.0,63233.0,0.73495238]
[1721060392496,0.01951315,63234.0,63233.0,0.73995238]
[1721060392735,0.01951315,63234.0,63233.0,0.73895238]
[1721060392972,0.01951315,63234.0,63233.0,0.73395238]
[1721060393190,0.02051315,63234.0,63233.0,0.74195238]
[1721060393607,0.00934,63234.0,63233.0,0.74195238]
[1721060394369,0.02092337,63234.0,63233.0,0.74195238]
[1721060395405,0.02092337,63234.0,63233.0,0.89195238]
[1721060396077,0.02092337,63234.0,63233.0,0.57995238]
[1721060396285,0.02092337,63234.0,63233.0,0.89195238]
[1721060396954,0.00934,63234.0,63233.0,0.89195238]
[1721060397556,0.02124015,63234.0,63233.0,0.57995238]
[1721060397764,0.04598655,63234.0,63233.0,0.89195238]
[1721060397975,0.02124015,63234.0,63233.0,0.57995238]
[1721060398223,0.02124015,63234.0,63233.0,0.89195238]
[1721060400369,0.02141976,63234.0,63233.0,0.57995238]
[1721060400584,0.02141976,63234.0,63233.0,0.89195238]
[1721060401240,0.02141976,63234.0,63233.0,0.57995238]
[1721060401661,0.02141976,63234.0,63233.0,0.89195238]
[1721060401879,0.04616617,63234.0,63233.0,0.48195238]
[1721060402144,0.54359317,63234.0,63233.0,0.258]
[1721060402365,0.98014183,63234.0,63233.0,0.108]
[1721060402593,1.00406545,63234.0,63233.0,0.108]
[1721060402813,1.00406545,63234.0,63233.0,0.008]
[1721060403237,1.0277245,63234.0,63233.0,0.008]
[1721060405535,1.3440095,63234.0,63233.0,0.008]
[1721060405991,1.34297124,63234.0,63233.0,0.008]
[1721060406213,1.02668624,63234.0,63233.0,0.008]
[1721060407059,1.02668624,63234.0,63233.0,0.106]
[1721060407060,0.18928142,63234.0,63233.0,0.106]
[1721060408398,0.18928142,63234.0,63233.0,0.418]
[1721060408629,0.04589979,63234.0,63233.0,0.518]
[1721060408842,0.02115338,63234.0,63233.0,0.518]
[1721060409271,0.02205049,63234.0,63233.0,0.518]
[1721060409955,0.02205049,63234.0,63233.0,0.206]
[1721060411005,0.02205049,63234.0,63233.0,0.356]
[1721060411503,0.27589556,63234.0,63233.0,0.108]
[1721060411712,0.88653081,63234.0,63233.0,0.108]
[1721060412144,1.35211891,63234.0,63233.0,0.008]
[1721060412432,1.92990872,63234.0,63233.0,0.008]
[1721060412673,0.008,63230.0,63228.0,0.001013]
[1721060412894,1.53925125,63229.0,63228.0,0.001013]
[1721060413119,2.05275125,63229.0,63228.0,0.001013]
[1721060413357,2.42362916,63229.0,63228.0,0.001013]
[1721060413570,1.84827811,63229.0,63228.0,0.001013]
[1721060413865,1.75694125,63229.0,63228.0,0.001013]
[1721060414503,1.31494125,63229.0,63228.0,0.001013]
[1721060414715,1.33975358,63229.0,63228.0,0.001013]
[1721060414934,1.16529439,63229.0,63228.0,0.001013]
[1721060415166,0.08485625,63229.0,63228.0,0.001013]
[1721060415377,0.36123268,63229.0,63228.0,0.08206538]
[1721060415593,0.21648253,63229.0,63228.0,0.08206538]
[1721060415819,0.20248253,63229.0,63228.0,0.08206538]
[1721060416036,0.21648253,63229.0,63228.0,0.08306538]
[1721060416260,0.10426617,63229.0,63228.0,0.74046538]
[1721060416469,0.09026617,63229.0,63228.0,0.54746538]
[1721060416679,0.04201963,63229.0,63228.0,0.54746538]
[1721060416890,0.04201963,63229.0,63228.0,0.42746538]
[1721060417103,0.05201963,63229.0,63228.0,0.42846538]
[1721060417316,0.04074566,63229.0,63228.0,0.42846538]
[1721060417543,0.04074566,63229.0,63228.0,0.54746538]
[1721060417544,0.02474566,63229.0,63228.0,0.54746538]
[1721060417753,0.03601963,63229.0,63228.0,0.32746538]
[1721060417974,0.03601963,63229.0,63228.0,0.54746538]
[1721060418625,0.03601963,63229.0,63228.0,0.73946538]
[1721060418884,0.01261111,63229.0,63228.0,0.73946538]
[1721060419094,0.01261111,63229.0,63228.0,0.74446538]
[1721060419523,0.01261111,63229.0,63228.0,0.73946538]
[1721060419748,0.01161111,63229.0,63228.0,0.73946538]
[1721060419949,0.01161111,63229.0,63228.0,0.74746538]
[1721060419950,0.01261111,63229.0,63228.0,0.74746538]
[1721060420194,0.01361111,63229.0,63228.0,0.74746538]
[1721060420430,0.01361111,63229.0,63228.0,0.89746538]
[1721060421139,0.01361111,63229.0,63228.0,0.43546538]
[1721060421373,0.01361111,63229.0,63228.0,0.89746538]
[1721060422075,0.01438063,63229.0,63228.0,0.89746538]
[1721060422802,0.01438063,63229.0,63228.0,0.70546538]
[1721060423046,0.01438063,63229.0,63228.0,0.58546538]
[1721060423520,0.01438063,63229.0,63228.0,0.28806538]
[1721060423521,0.48884563,63229.0,63228.0,0.28806538]
[1721060423754,0.48884563,63229.0,63228.0,0.75006538]
[1721060423755,0.01438063,63229.0,63228.0,0.75006538]
[1721060424004,0.01438063,63229.0,63228.0,0.43806538]
[1721060424266,0.03912714,63229.0,63228.0,0.55806538]
[1721060424500,0.19728214,63229.0,63228.0,0.009013]
[1721060424745,0.58461289,63229.0,63228.0,0.009013]
[1721060424977,0.90092289,63229.0,63228.0,0.009013]
[1721060425207,0.89958049,63229.0,63228.0,0.009013]
[1721060425446,1.21589049,63229.0,63228.0,0.009013]
[1721060425671,1.28682874,63229.0,63228.0,0.009013]
[1721060426886,1.65783349,63229.0,63228.0,0.009013]
[1721060427854,1.65783349,63229.0,63228.0,0.001013]
[1721060427855,1.65683349,63229.0,63228.0,0.001013]
[1721060428324,0.0205,63209.0,63203.0,0.098]
[1721060428554,0.0205,63209.0,63196.0,0.1]
[1721060428555,0.158222,63202.0,63199.0,0.08105238]
[1721060428778,0.5567116,63202.0,63199.0,0.08105238]
[1721060429015,0.9731566,63202.0,63199.0,0.08105238]
[1721060429298,1.06708789,63202.0,63199.0,0.08105238]
[1721060429525,1.06708789,63202.0,63201.0,0.098913]
[1721060429526,0.1820446,63202.0,63201.0,0.098913]
[1721060429758,0.1347785,63202.0,63201.0,0.098913]
[1721060429983,0.1346785,63202.0,63201.0,0.098913]
[1721060430721,0.1346785,63202.0,63201.0,0.101913]
[1721060431193,0.1346785,63202.0,63201.0,0.653913]
[1721060431194,0.00993199,63202.0,63201.0,0.653913]
[1721060431475,0.633863,63219.0,63201.0,0.653913]
[1721060431476,0.005,63232.0,63217.0,0.098]
[1721060431691,0.26390384,63253.0,63224.0,0.17905238]
[1721060431692,0.09454347,63226.0,63224.0,0.17905238]
[1721060431943,0.3258214,63225.0,63224.0,0.17905238]
[1721060432196,0.23562049,63225.0,63224.0,0.17905238]
[1721060432437,0.23562049,63225.0,63224.0,0.24005238]
[1721060432438,0.07745549,63225.0,63224.0,0.24005238]
[1721060432663,0.07720746,63225.0,63224.0,0.24005238]
[1721060432911,0.02909522,63225.0,63224.0,0.50429572]
[1721060433849,0.02909522,63225.0,63224.0,0.60429572]
[1721060434077,0.00434256,63225.0,63224.0,0.60429572]
[1721060434360,0.00434256,63225.0,63224.0,1.06629572]
[1721060434579,0.166484,63234.0,63228.0,0.1]
[1721060434799,0.158147,63232.0,63231.0,0.098]
[1721060435030,0.16222576,63232.0,63231.0,0.098]
[1721060435266,0.18697431,63232.0,63231.0,0.098]
[1721060435501,0.02882731,63232.0,63231.0,0.1773]
[1721060436192,0.18697431,63232.0,63231.0,0.1773]
[1721060436890,0.02882731,63232.0,63231.0,0.1773]
[1721060437580,0.03082731,63232.0,63231.0,0.51035238]
[1721060437804,0.00607876,63232.0,63231.0,1.08459572]
[1721060438020,0.002,63232.0,63231.0,1.08459572]
[1721060438449,0.002,63232.0,63231.0,0.69629572]
[1721060438845,0.00083,63233.0,63231.0,0.69629572]
[1721060438846,0.00083,63233.0,63232.0,0.198]
[1721060439090,0.00083,63233.0,63232.0,0.348]
[1721060439320,0.0255779,63233.0,63232.0,0.198]
[1721060439495,0.03014163,63233.0,63232.0,0.198]
[1721060439924,0.01699285,63233.0,63232.0,0.198]
[1721060440135,0.2028859,63233.0,63232.0,0.198]
[1721060440393,0.01999285,63233.0,63232.0,0.198]
[1721060440609,0.20288597,63233.0,63232.0,0.198]
[1721060440814,0.51617597,63233.0,63232.0,0.198]
[1721060441046,0.18828685,63233.0,63232.0,0.198]
[1721060441268,0.19977909,63233.0,63232.0,0.198]
[1721060441482,0.04163409,63233.0,63232.0,0.198]
[1721060441938,0.01688597,63233.0,63232.0,0.198]
[1721060442151,0.01688597,63233.0,63232.0,0.66]
[1721060442363,0.01688597,63233.0,63232.0,0.7247]
[1721060442570,0.01232224,63233.0,63232.0,0.7247]
[1721060442783,0.01232224,63233.0,63232.0,0.8063]
[1721060443002,0.01232224,63233.0,63232.0,0.8113]
[1721060443424,0.01232224,63233.0,63232.0,0.8093]
[1721060443858,0.01232224,63233.0,63232.0,0.8133]
[1721060444313,0.01378577,63233.0,63232.0,0.8103]
[1721060444772,0.01478577,63233.0,63232.0,0.3513]
[1721060444964,0.01378577,63233.0,63232.0,1.594]
[1721060445156,0.01378577,63233.0,63232.0,2.056]
[1721060445514,0.01378577,63233.0,63232.0,1.594]
[1721060445736,0.01478577,63233.0,63232.0,1.593]
[1721060445954,0.01478577,63233.0,63232.0,2.055]
[1721060446171,0.01578577,63233.0,63232.0,2.063]
[1721060446610,0.01478577,63233.0,63232.0,1.593]
[1721060446823,0.01478577,63233.0,63232.0,2.055]
[1721060447043,0.01578577,63233.0,63232.0,1.605]
[1721060447478,0.01478577,63233.0,63232.0,1.602]
[1721060447687,0.01478577,63233.0,63232.0,2.064]
[1721060447904,0.01578577,63233.0,63232.0,2.067]
[1721060448365,0.01578577,63233.0,63232.0,1.605]
[1721060448599,0.01578577,63233.0,63232.0,1.6051]
[1721060448817,0.01578577,63233.0,63232.0,2.1271]
[1721060449033,0.00283,63233.0,63232.0,2.1271]
[1721060449533,0.00283,63233.0,63232.0,1.6051]
[1721060449747,0.00283,63233.0,63232.0,2.0671]
[1721060449948,0.00183,63233.0,63232.0,2.0551]
[1721060450152,0.00283,63233.0,63232.0,2.0671]
[1721060450361,0.00283,63233.0,63232.0,2.1271]
[1721060450776,0.00183,63233.0,63232.0,2.0551]
[1721060450979,0.00283,63233.0,63232.0,2.0671]
[1721060451398,0.00283,63233.0,63232.0,1.6051]
[1721060451608,0.00183,63233.0,63232.0,2.0641]
[1721060452032,0.00283,63233.0,63232.0,2.0781]
[1721060452237,0.01585743,63233.0,63232.0,2.0781]
[1721060452447,0.01485743,63233.0,63232.0,2.0641]
[1721060452657,0.01485743,63233.0,63232.0,2.0781]
[1721060453915,0.01486789,63233.0,63232.0,2.0781]
[1721060456256,0.00183,63233.0,63232.0,2.0781]
[1721060457106,0.00183,63233.0,63232.0,2.1381]
[1721060459768,0.00183,63233.0,63232.0,2.0781]
[1721060459971,0.01572609,63233.0,63232.0,2.0781]
[1721060460387,0.01572609,63233.0,63232.0,1.74826682]
[1721060461474,0.01572609,63233.0,63232.0,1.28626682]
[1721060461683,0.01572609,63233.0,63232.0,1.74826682]
[1721060461893,0.01572609,63233.0,63232.0,1.28626682]
[1721060462106,0.01572609,63233.0,63232.0,1.74826682]
[1721060462548,0.01572609,63233.0,63232.0,1.43626682]
[1721060462766,0.62769211,63233.0,63232.0,1.2718]
[1721060463202,0.63251558,63233.0,63232.0,1.2718]
[1721060463692,0.63151558,63233.0,63232.0,1.2598]
[1721060463897,0.09198058,63233.0,63232.0,1.5818]
[1721060464123,0.09679251,63233.0,63232.0,1.5818]
[1721060464336,0.07204411,63233.0,63232.0,1.5818]
[1721060464562,0.06898058,63233.0,63232.0,1.7119]
[1721060464773,0.01954956,63233.0,63232.0,1.7719]
[1721060465030,0.01472609,63233.0,63232.0,1.7219]
[1721060465449,0.01472609,63233.0,63232.0,1.7679]
[1721060465671,0.01472609,63233.0,63232.0,1.7079]
[1721060465907,0.01565255,63233.0,63232.0,1.7219]
[1721060466331,0.01465255,63233.0,63232.0,1.7079]
[1721060466538,0.01465255,63233.0,63232.0,1.6979]
[1721060466747,0.01565255,63233.0,63232.0,1.7229]
[1721060467223,0.01565255,63233.0,63232.0,1.7119]
[1721060467439,0.01565255,63233.0,63232.0,1.5718]
[1721060467649,0.01565255,63233.0,63232.0,1.5858]
[1721060468075,0.02045507,63233.0,63232.0,1.586713]
[1721060468297,0.01565255,63233.0,63232.0,1.586713]
[1721060469170,0.01511979,63233.0,63232.0,1.586713]
[1721060469629,0.01511752,63233.0,63232.0,1.791413]
[1721060470060,0.01511752,63233.0,63232.0,1.731413]
[1721060470269,0.01511752,63233.0,63232.0,1.791413]
[1721060470478,0.01511752,63233.0,63232.0,1.731413]
[1721060470894,0.01511752,63233.0,63232.0,1.419413]
[1721060471363,0.01511752,63233.0,63232.0,1.881413]
[1721060471566,0.01511752,63233.0,63232.0,1.419413]
[1721060471778,0.01511752,63233.0,63232.0,1.941413]
[1721060471979,0.01478015,63233.0,63232.0,1.419413]
[1721060472200,0.01478015,63233.0,63232.0,1.941413]
[1721060472201,0.01478001,63233.0,63232.0,1.941413]
[1721060472651,0.01478001,63233.0,63232.0,1.881413]
[1721060473562,0.01478001,63233.0,63232.0,1.941413]
[1721060473988,0.01478001,63233.0,63232.0,1.419413]
[1721060474421,0.01478001,63233.0,63232.0,1.881413]
[1721060474632,0.01478001,63233.0,63232.0,1.419413]
[1721060475520,0.01460486,63233.0,63232.0,1.419413]
[1721060475731,0.01460486,63233.0,63232.0,1.941413]
[1721060476770,0.01460486,63233.0,63232.0,2.40353091]
[1721060476974,0.00183,63233.0,63232.0,1.68153091]
[1721060477590,0.00183,63233.0,63232.0,1.66753091]
[1721060477805,0.00183,63233.0,63232.0,0.42183091]
[1721060478023,0.00834,63237.0,63233.0,0.849]
[1721060478231,0.00306353,63249.0,63248.0,0.663]
[1721060478442,0.04727206,63260.0,63252.0,0.312]
[1721060478650,0.02092535,63253.0,63252.0,0.312]
[1721060478878,0.02092535,63253.0,63248.0,0.69629572]
[1721060478879,0.02092535,63253.0,63248.0,0.48629572]
[1721060479125,0.01258535,63252.0,63248.0,0.48629572]
[1721060479337,0.01258535,63251.0,63248.0,0.48629572]
[1721060479543,0.00834,63253.0,63248.0,0.48629572]
[1721060479748,0.01248152,63252.0,63248.0,0.48629572]
[1721060479970,0.01248152,63252.0,63251.0,0.462]
[1721060480428,0.01248152,63252.0,63248.0,0.26424334]
[1721060480633,0.01248152,63252.0,63249.0,0.08105238]
[1721060480847,0.01248152,63252.0,63251.0,0.462]
[1721060481062,0.01248152,63252.0,63249.0,0.08105238]
[1721060481063,0.16098152,63252.0,63249.0,0.15]
[1721060481280,0.1983859,63251.0,63249.0,0.15]
[1721060481490,0.03722137,63250.0,63249.0,0.15]
[1721060481714,0.1983879,63250.0,63248.0,0.26424334]
[1721060481920,0.03677117,63249.0,63248.0,0.26424334]
[1721060482130,0.0398347,63249.0,63248.0,0.26424334]
[1721060482345,0.0440749,63249.0,63248.0,0.26424334]
[1721060482566,0.04101137,63249.0,63248.0,0.26424334]
[1721060482778,0.01627152,63249.0,63248.0,0.65564334]
[1721060483201,0.01203132,63249.0,63248.0,0.65564334]
[1721060483413,0.01203132,63252.0,63248.0,0.71674334]
[1721060483621,0.01203132,63252.0,63251.0,0.39305238]
[1721060483622,0.01204654,63252.0,63251.0,0.39305238]
[1721060484524,0.01204654,63252.0,63251.0,0.38805238]
[1721060485383,0.01204654,63252.0,63251.0,0.08105238]
[1721060486005,0.01204654,63252.0,63251.0,0.55205238]
[1721060486209,0.01176028,63252.0,63251.0,0.55205238]
[1721060486670,0.01118866,63252.0,63251.0,0.56605238]
[1721060487087,0.00834,63253.0,63252.0,0.307]
[1721060487494,0.00834,63253.0,63251.0,0.10905238]
[1721060487926,0.00834,63253.0,63252.0,0.457]
[1721060488774,0.00834,63253.0,63251.0,0.10905238]
[1721060488994,0.00834,63253.0,63252.0,0.457]
[1721060489633,0.00834,63253.0,63251.0,0.09505238]
[1721060489835,0.00834,63253.0,63252.0,0.014]
[1721060490039,0.00834,63253.0,63252.0,0.471]
[1721060490256,0.00834,63253.0,63252.0,0.485]
[1721060490509,0.00834,63253.0,63252.0,0.471]
[1721060491736,0.00834,63253.0,63252.0,0.014]
[1721060491936,0.00834,63253.0,63252.0,0.01716131]
[1721060492168,0.00834,63253.0,63252.0,0.6755]
[1721060492383,0.00834,63253.0,63252.0,0.1585]
[1721060492557,0.00834,63253.0,63252.0,0.1445]
[1721060492809,0.00834,63253.0,63252.0,0.66466107]
[1721060492947,0.00834,63253.0,63252.0,0.67866107]
[1721060493362,0.00834,63253.0,63252.0,0.66466107]
[1721060493764,0.00834,63253.0,63252.0,0.69276107]
[1721060493966,0.00834,63253.0,63252.0,0.67876107]
[1721060494181,0.00834,63262.0,63261.0,0.517]
[1721060494398,0.00834,63262.0,63261.0,1.39981363]
[1721060495451,0.00834,63262.0,63261.0,1.41381363]
[1721060495703,0.00834,63262.0,63261.0,1.42781363]
[1721060496104,0.00834,63262.0,63261.0,1.41381363]
[1721060496477,0.00834,63262.0,63261.0,1.42781363]
[1721060497337,0.00834,63262.0,63261.0,1.41381363]
[1721060497752,0.00834,63262.0,63261.0,1.42781363]
[1721060497964,0.00834,63262.0,63261.0,1.41381363]
[1721060498388,0.00834,63262.0,63261.0,0.91081363]
[1721060498801,0.00834,63262.0,63261.0,1.42781363]
[1721060499632,0.00834,63262.0,63261.0,1.16357029]
[1721060500573,0.00834,63262.0,63261.0,1.26357029]
[1721060501209,0.00834,63262.0,63261.0,0.545]
[1721060501628,0.00834,63262.0,63261.0,0.85121791]
[1721060501880,0.00834,63262.0,63261.0,0.83721791]
[1721060502282,0.00834,63262.0,63261.0,0.82321791]
[1721060502512,0.00834,63262.0,63261.0,0.83721791]
[1721060502733,0.00834,63262.0,63261.0,0.85121791]
[1721060503202,0.00834,63262.0,63261.0,0.93721791]
[1721060503420,0.00834,63262.0,63261.0,0.95121791]
[1721060503645,0.00834,63262.0,63261.0,0.42021791]
[1721060503870,0.00834,63262.0,63261.0,0.40621791]
[1721060504080,0.00834,63262.0,63261.0,0.93721791]
[1721060504305,0.00834,63262.0,63261.0,0.42021791]
[1721060504506,0.00834,63262.0,63261.0,0.93721791]
[1721060505562,0.00834,63262.0,63261.0,0.95121791]
[1721060505797,0.00834,63262.0,63261.0,0.93721791]
[1721060505997,0.00834,63262.0,63261.0,0.92321791]
[1721060506433,0.00834,63262.0,63261.0,0.93721791]
[1721060506644,0.00834,63262.0,63261.0,0.95121791]
[1721060507084,0.00834,63262.0,63261.0,0.43421791]
[1721060507294,0.00834,63262.0,63261.0,0.95121791]
[1721060507498,0.00834,63262.0,63261.0,1.15121791]
[1721060508574,0.00834,63267.0,63266.0,0.612]
[1721060508787,0.00834,63267.0,63266.0,0.97441791]
[1721060509014,0.00834,63289.0,63284.0,0.517]
[1721060509226,0.00834,63289.0,63284.0,0.95214334]
[1721060509725,0.00834,63289.0,63284.0,0.72124334]
[1721060510162,0.00834,63289.0,63284.0,0.73524334]
[1721060510613,0.166346,63289.0,63284.0,0.41424334]
[1721060510819,0.166346,63289.0,63284.0,0.73524334]
[1721060511004,0.00306353,63288.0,63284.0,0.44224334]